[Event "Titled Tuesday Blitz June 28 Early 2022"]
[White "Bellahcene, Bilel"]
[Black "Mikhalsky, Vladimir"]
[WhiteFideId "696358"]
[BlackFideId "14144352"]
[WhiteElo "2543"]
[BlackElo "2301"]
[Result "0-1"]
[Round "08"]
[TimeControl "180+1"]
[Date "2022.06.28"]
[WhiteClock "0:00:12"]
[BlackClock "0:00:40"]

1. d4 {[%clk 0:03:00]}  Nf6 {[%clk 0:02:59]} 2. Bf4 {[%clk 0:02:59]}  g6 {[%clk 0:02:59]} 3. e3 {[%clk 0:02:59]}  Bg7 {[%clk 0:02:59]} 4. Nf3 {[%clk 0:02:59]}  O-O {[%clk 0:03:00]} 5. Be2 {[%clk 0:02:59]}  d6 {[%clk 0:03:00]} 6. h3 {[%clk 0:02:58]}  Nfd7 {[%clk 0:03:01]} 7. O-O {[%clk 0:02:57]}  e5 {[%clk 0:03:01]} 8. Bh2 {[%clk 0:02:56]}  Nc6 {[%clk 0:03:01]} 9. c4 {[%clk 0:02:55]}  h6 {[%clk 0:02:51]} 10. Nc3 {[%clk 0:02:54]}  f5 {[%clk 0:02:51]} 11. a3 {[%clk 0:02:46]}  e4 {[%clk 0:02:50]} 12. Nd2 {[%clk 0:02:46]}  Nf6 {[%clk 0:02:44]} 13. b4 {[%clk 0:02:43]}  g5 {[%clk 0:02:44]} 14. b5 {[%clk 0:02:22]}  Ne7 {[%clk 0:02:43]} 15. c5 {[%clk 0:02:20]}  d5 {[%clk 0:02:40]} 16. c6 {[%clk 0:02:11]}  b6 {[%clk 0:02:30]} 17. a4 {[%clk 0:02:06]}  Be6 {[%clk 0:02:10]} 18. a5 {[%clk 0:02:02]}  Rc8 {[%clk 0:02:08]} 19. axb6 {[%clk 0:02:01]}  axb6 {[%clk 0:02:07]} 20. Ra7 {[%clk 0:01:58]}  Ng6 {[%clk 0:02:06]} 21. f3 {[%clk 0:01:30]}  f4 {[%clk 0:02:03]} 22. exf4 {[%clk 0:01:17]}  Nxf4 {[%clk 0:02:03]} 23. Bxf4 {[%clk 0:01:14]}  gxf4 {[%clk 0:02:02]} 24. fxe4 {[%clk 0:01:15]}  dxe4 {[%clk 0:01:56]} 25. Ncxe4 {[%clk 0:01:00]}  Qxd4+ {[%clk 0:01:49]} 26. Kh1 {[%clk 0:00:57]}  Nxe4 {[%clk 0:01:48]} 27. Nxe4 {[%clk 0:00:57]}  Qxe4 {[%clk 0:01:49]} 28. Bd3 {[%clk 0:00:57]}  Qd5 {[%clk 0:01:39]} 29. Qe2 {[%clk 0:00:38]}  f3 {[%clk 0:01:24]} 30. gxf3 {[%clk 0:00:39]}  Kh8 {[%clk 0:01:10]} 31. Be4 {[%clk 0:00:35]}  Qh5 {[%clk 0:01:08]} 32. Rf2 {[%clk 0:00:19]}  Be5 {[%clk 0:00:57]} 33. Kg1 {[%clk 0:00:12]}  Rg8+ {[%clk 0:00:55]} 34. Kf1 {[%clk 0:00:12]}  Qxh3+ {[%clk 0:00:52]} 35. Ke1 {[%clk 0:00:12]}  Bc3+ {[%clk 0:00:47]} 36. Kd1 {[%clk 0:00:12]}  Bb3+ {[%clk 0:00:44]} 37. Kc1 {[%clk 0:00:12]}  Rg1+ {[%clk 0:00:40]} 0-1


[Site "https://www.chess.com"]

[Event "Titled Tuesday Blitz June 28 Early 2022"]
[White "Blokhin, Sofia"]
[Black "Namitbir Singh Walia"]
[WhiteFideId "4508190"]
[BlackFideId "35071068"]
[WhiteElo "1760"]
[BlackElo "1565"]
[Result "0-1"]
[Round "08"]
[TimeControl "180+1"]
[Date "2022.06.28"]
[WhiteClock "0:00:45"]
[BlackClock "0:01:55"]

1. d4 {[%clk 0:03:00]}  f5 {[%clk 0:02:58]} 2. c4 {[%clk 0:02:58]}  Nf6 {[%clk 0:02:58]} 3. Nc3 {[%clk 0:02:57]}  d6 {[%clk 0:02:58]} 4. g3 {[%clk 0:02:56]}  e5 {[%clk 0:02:58]} 5. dxe5 {[%clk 0:02:54]}  dxe5 {[%clk 0:02:59]} 6. Qxd8+ {[%clk 0:02:53]}  Kxd8 {[%clk 0:03:00]} 7. Bg2 {[%clk 0:02:53]}  c6 {[%clk 0:02:58]} 8. e4 {[%clk 0:02:51]}  Bb4 {[%clk 0:02:56]} 9. Bg5 {[%clk 0:02:46]}  Kc7 {[%clk 0:02:55]} 10. Bxf6 {[%clk 0:02:43]}  gxf6 {[%clk 0:02:55]} 11. O-O-O {[%clk 0:02:40]}  Bxc3 {[%clk 0:02:53]} 12. bxc3 {[%clk 0:02:40]}  Na6 {[%clk 0:02:53]} 13. Ne2 {[%clk 0:02:32]}  Nc5 {[%clk 0:02:51]} 14. exf5 {[%clk 0:02:26]}  Bxf5 {[%clk 0:02:52]} 15. Rhf1 {[%clk 0:02:00]}  Bd3 {[%clk 0:02:48]} 16. Kd2 {[%clk 0:01:52]}  Rad8 {[%clk 0:02:46]} 17. Ke3 {[%clk 0:01:46]}  Bxc4 {[%clk 0:02:43]} 18. Rfe1 {[%clk 0:01:38]}  Nd3 {[%clk 0:02:40]} 19. Rf1 {[%clk 0:01:35]}  f5 {[%clk 0:02:37]} 20. f4 {[%clk 0:01:33]}  exf4+ {[%clk 0:02:35]} 21. gxf4 {[%clk 0:01:02]}  Rhe8+ {[%clk 0:02:32]} 22. Kf3 {[%clk 0:01:00]}  Nc1 {[%clk 0:02:19]} 23. Nxc1 {[%clk 0:00:57]}  Bxf1 {[%clk 0:02:09]} 24. Rxf1 {[%clk 0:00:54]}  Rd2 {[%clk 0:02:08]} 25. Rf2 {[%clk 0:00:50]}  Rd1 {[%clk 0:01:57]} 26. Nb3 {[%clk 0:00:45]}  Rd3# {[%clk 0:01:55]} 0-1


[Site "https://www.chess.com"]

[Event "Titled Tuesday Blitz June 28 Early 2022"]
[White "Bluebaum, Matthias"]
[Black "Araujo Sanchez, Josue"]
[WhiteFideId "24651516"]
[BlackFideId "6416896"]
[WhiteElo "2556"]
[BlackElo "2339"]
[Result "1/2-1/2"]
[Round "08"]
[TimeControl "180+1"]
[Date "2022.06.28"]
[WhiteClock "0:00:10"]
[BlackClock "0:00:06"]

1. d4 {[%clk 0:03:00]}  Nf6 {[%clk 0:02:59]} 2. c4 {[%clk 0:03:01]}  e6 {[%clk 0:02:59]} 3. Nc3 {[%clk 0:03:02]}  Bb4 {[%clk 0:02:59]} 4. e3 {[%clk 0:03:02]}  O-O {[%clk 0:02:58]} 5. Bd2 {[%clk 0:03:03]}  c5 {[%clk 0:02:54]} 6. a3 {[%clk 0:03:02]}  Bxc3 {[%clk 0:02:53]} 7. Bxc3 {[%clk 0:03:03]}  cxd4 {[%clk 0:02:53]} 8. Qxd4 {[%clk 0:03:02]}  Nc6 {[%clk 0:02:53]} 9. Qh4 {[%clk 0:03:02]}  e5 {[%clk 0:02:48]} 10. Nf3 {[%clk 0:03:00]}  d6 {[%clk 0:02:48]} 11. Be2 {[%clk 0:02:57]}  Bf5 {[%clk 0:02:47]} 12. O-O {[%clk 0:02:57]}  Qe7 {[%clk 0:02:47]} 13. Nd2 {[%clk 0:02:53]}  Rfe8 {[%clk 0:02:47]} 14. Rad1 {[%clk 0:02:51]}  Rad8 {[%clk 0:02:46]} 15. f3 {[%clk 0:02:46]}  d5 {[%clk 0:02:36]} 16. cxd5 {[%clk 0:02:33]}  Nxd5 {[%clk 0:02:35]} 17. Qxe7 {[%clk 0:02:31]}  Rxe7 {[%clk 0:02:36]} 18. e4 {[%clk 0:02:32]}  Nxc3 {[%clk 0:02:34]} 19. bxc3 {[%clk 0:02:30]}  Be6 {[%clk 0:02:31]} 20. Nc4 {[%clk 0:02:28]}  Red7 {[%clk 0:02:29]} 21. Rxd7 {[%clk 0:02:26]}  Rxd7 {[%clk 0:02:30]} 22. Rb1 {[%clk 0:02:23]}  Kf8 {[%clk 0:02:27]} 23. Kf2 {[%clk 0:02:23]}  Ke7 {[%clk 0:02:22]} 24. Ke3 {[%clk 0:02:23]}  b6 {[%clk 0:02:21]} 25. Rb5 {[%clk 0:02:17]}  f6 {[%clk 0:02:15]} 26. a4 {[%clk 0:02:09]}  Bxc4 {[%clk 0:02:11]} 27. Bxc4 {[%clk 0:02:10]}  Na5 {[%clk 0:02:10]} 28. Bd5 {[%clk 0:02:11]}  Rc7 {[%clk 0:02:10]} 29. Kd3 {[%clk 0:02:09]}  Rc5 {[%clk 0:02:10]} 30. Rxc5 {[%clk 0:01:33]}  bxc5 {[%clk 0:02:09]} 31. Ke3 {[%clk 0:01:33]}  g5 {[%clk 0:01:51]} 32. g3 {[%clk 0:01:30]}  h5 {[%clk 0:01:41]} 33. h4 {[%clk 0:01:23]}  gxh4 {[%clk 0:01:31]} 34. gxh4 {[%clk 0:01:24]}  Kf8 {[%clk 0:01:31]} 35. f4 {[%clk 0:00:43]}  Kg7 {[%clk 0:01:29]} 36. f5 {[%clk 0:00:42]}  Kf8 {[%clk 0:01:24]} 37. Kd3 {[%clk 0:00:42]}  Kg7 {[%clk 0:01:22]} 38. Ba2 {[%clk 0:00:39]}  Kh7 {[%clk 0:01:15]} 39. Bf7 {[%clk 0:00:37]}  Kh6 {[%clk 0:01:13]} 40. Be8 {[%clk 0:00:35]}  c4+ {[%clk 0:00:57]} 41. Ke3 {[%clk 0:00:26]}  Nb7 {[%clk 0:00:49]} 42. Bc6 {[%clk 0:00:26]}  Nd6 {[%clk 0:00:46]} 43. a5 {[%clk 0:00:27]}  Kg7 {[%clk 0:00:41]} 44. Kd2 {[%clk 0:00:25]}  Kf8 {[%clk 0:00:41]} 45. Kc2 {[%clk 0:00:22]}  Ke7 {[%clk 0:00:42]} 46. Kb2 {[%clk 0:00:23]}  Kd8 {[%clk 0:00:42]} 47. Ka3 {[%clk 0:00:24]}  Kc7 {[%clk 0:00:43]} 48. Bd5 {[%clk 0:00:24]}  Kc8 {[%clk 0:00:31]} 49. Kb4 {[%clk 0:00:25]}  Kd8 {[%clk 0:00:30]} 50. Kc5 {[%clk 0:00:24]}  Kc7 {[%clk 0:00:25]} 51. Bc6 {[%clk 0:00:24]}  Nc8 {[%clk 0:00:10]} 52. Bd5 {[%clk 0:00:09]}  Nd6 {[%clk 0:00:11]} 53. Ba8 {[%clk 0:00:07]}  a6 {[%clk 0:00:07]} 54. Bd5 {[%clk 0:00:06]}  Nb7+ {[%clk 0:00:04]} 55. Bxb7 {[%clk 0:00:05]}  Kxb7 {[%clk 0:00:05]} 56. Kxc4 {[%clk 0:00:05]}  Kc6 {[%clk 0:00:05]} 57. Kb4 {[%clk 0:00:06]}  Kd6 {[%clk 0:00:05]} 58. c4 {[%clk 0:00:06]}  Kc6 {[%clk 0:00:04]} 59. c5 {[%clk 0:00:06]}  Kc7 {[%clk 0:00:04]} 60. Kb3 {[%clk 0:00:07]}  Kd7 {[%clk 0:00:04]} 61. Kc3 {[%clk 0:00:06]}  Kc7 {[%clk 0:00:04]} 62. c6 {[%clk 0:00:06]}  Kxc6 {[%clk 0:00:04]} 63. Kc4 {[%clk 0:00:07]}  Kd6 {[%clk 0:00:05]} 64. Kb4 {[%clk 0:00:07]}  Kc6 {[%clk 0:00:05]} 65. Kc4 {[%clk 0:00:08]}  Kd6 {[%clk 0:00:05]} 66. Kb4 {[%clk 0:00:09]}  Kc6 {[%clk 0:00:06]} 67. Kc4 {[%clk 0:00:10]} 1/2-1/2


[Site "https://www.chess.com"]

[Event "Titled Tuesday Blitz June 28 Early 2022"]
[White "Coto Mederos, Michel"]
[Black "Aradhya, Garg"]
[WhiteFideId "3508528"]
[BlackFideId "25006746"]
[WhiteElo "2427"]
[BlackElo "2203"]
[Result "0-1"]
[Round "08"]
[TimeControl "180+1"]
[Date "2022.06.28"]
[WhiteClock "0:00:04"]
[BlackClock "0:01:42"]

1. d4 {[%clk 0:03:00]}  d5 {[%clk 0:02:58]} 2. Nf3 {[%clk 0:02:59]}  Nf6 {[%clk 0:02:57]} 3. Bf4 {[%clk 0:03:00]}  c5 {[%clk 0:02:57]} 4. e3 {[%clk 0:03:00]}  Nc6 {[%clk 0:02:56]} 5. Nbd2 {[%clk 0:03:00]}  Nh5 {[%clk 0:02:41]} 6. Bg5 {[%clk 0:02:49]}  h6 {[%clk 0:02:37]} 7. Bh4 {[%clk 0:02:37]}  g5 {[%clk 0:02:37]} 8. Ne5 {[%clk 0:02:22]}  Ng7 {[%clk 0:02:35]} 9. Nxc6 {[%clk 0:02:13]}  bxc6 {[%clk 0:02:36]} 10. Bg3 {[%clk 0:02:14]}  Nf5 {[%clk 0:02:34]} 11. c3 {[%clk 0:02:09]}  h5 {[%clk 0:02:33]} 12. h3 {[%clk 0:01:32]}  Nxg3 {[%clk 0:02:30]} 13. fxg3 {[%clk 0:01:33]}  g4 {[%clk 0:02:24]} 14. Qa4 {[%clk 0:00:53]}  Qd6 {[%clk 0:02:23]} 15. O-O-O {[%clk 0:00:53]}  cxd4 {[%clk 0:02:21]} 16. exd4 {[%clk 0:00:54]}  Bd7 {[%clk 0:02:20]} 17. Ba6 {[%clk 0:00:49]}  Bh6 {[%clk 0:02:16]} 18. hxg4 {[%clk 0:00:39]}  Bxg4 {[%clk 0:02:11]} 19. Bb7 {[%clk 0:00:37]}  Rb8 {[%clk 0:02:03]} 20. Qxc6+ {[%clk 0:00:34]}  Qxc6 {[%clk 0:02:03]} 21. Bxc6+ {[%clk 0:00:35]}  Kf8 {[%clk 0:02:04]} 22. Bxd5 {[%clk 0:00:34]}  Bxd1 {[%clk 0:02:03]} 23. Rxd1 {[%clk 0:00:30]}  Rg8 {[%clk 0:02:03]} 24. Rf1 {[%clk 0:00:26]}  Rg7 {[%clk 0:02:00]} 25. b3 {[%clk 0:00:22]}  Kg8 {[%clk 0:01:59]} 26. Rf3 {[%clk 0:00:20]}  Rb5 {[%clk 0:01:55]} 27. c4 {[%clk 0:00:17]}  Rb6 {[%clk 0:01:51]} 28. c5 {[%clk 0:00:14]}  Rb8 {[%clk 0:01:50]} 29. Kc2 {[%clk 0:00:13]}  e6 {[%clk 0:01:50]} 30. Bc4 {[%clk 0:00:12]}  Rg4 {[%clk 0:01:49]} 31. Kd3 {[%clk 0:00:10]}  Bg7 {[%clk 0:01:47]} 32. Ne4 {[%clk 0:00:10]}  Rd8 {[%clk 0:01:47]} 33. c6 {[%clk 0:00:06]}  Rxd4+ {[%clk 0:01:43]} 34. Kc2 {[%clk 0:00:04]}  Rgxe4 {[%clk 0:01:42]} 0-1


[Site "https://www.chess.com"]

[Event "Titled Tuesday Blitz June 28 Early 2022"]
[White "Dobre, Claudiu-Cristian"]
[Black "Polster, Christian"]
[WhiteFideId "1211854"]
[BlackFideId "12965081"]
[WhiteElo "2207"]
[BlackElo "2315"]
[Result "1/2-1/2"]
[Round "08"]
[TimeControl "180+1"]
[Date "2022.06.28"]
[WhiteClock "0:00:34"]
[BlackClock "0:00:04"]

1. Nf3 {[%clk 0:03:00]}  d5 {[%clk 0:02:59]} 2. b3 {[%clk 0:02:59]}  c5 {[%clk 0:02:57]} 3. e3 {[%clk 0:02:59]}  Nc6 {[%clk 0:02:56]} 4. Bb2 {[%clk 0:02:57]}  Nf6 {[%clk 0:02:56]} 5. c4 {[%clk 0:02:56]}  d4 {[%clk 0:02:54]} 6. exd4 {[%clk 0:02:25]}  cxd4 {[%clk 0:02:54]} 7. a3 {[%clk 0:02:21]}  a5 {[%clk 0:02:53]} 8. d3 {[%clk 0:02:21]}  e5 {[%clk 0:02:52]} 9. Be2 {[%clk 0:02:21]}  Bd6 {[%clk 0:02:49]} 10. O-O {[%clk 0:02:21]}  O-O {[%clk 0:02:48]} 11. Nbd2 {[%clk 0:02:19]}  Nd7 {[%clk 0:02:45]} 12. Ne4 {[%clk 0:01:52]}  Be7 {[%clk 0:02:38]} 13. g4 {[%clk 0:01:52]}  Nc5 {[%clk 0:02:19]} 14. Nxc5 {[%clk 0:01:52]}  Bxc5 {[%clk 0:02:20]} 15. Nd2 {[%clk 0:01:50]}  Qh4 {[%clk 0:02:13]} 16. Ne4 {[%clk 0:01:41]}  Bb6 {[%clk 0:01:58]} 17. Bc1 {[%clk 0:01:41]}  h6 {[%clk 0:01:40]} 18. f4 {[%clk 0:01:41]}  exf4 {[%clk 0:01:34]} 19. Bxf4 {[%clk 0:01:39]}  f5 {[%clk 0:01:20]} 20. Bg3 {[%clk 0:01:29]}  Qd8 {[%clk 0:01:16]} 21. Nd6 {[%clk 0:01:28]}  f4 {[%clk 0:00:28]} 22. Nxc8 {[%clk 0:01:27]}  fxg3 {[%clk 0:00:27]} 23. Nxb6 {[%clk 0:01:18]}  Qh4 {[%clk 0:00:04]} 24. hxg3 {[%clk 0:00:33]}  Qxg3+ {[%clk 0:00:04]} 25. Kh1 {[%clk 0:00:34]}  Qh3+ {[%clk 0:00:05]} 26. Kg1 {[%clk 0:00:34]}  Qg3+ {[%clk 0:00:05]} 27. Kh1 {[%clk 0:00:34]}  Qh3+ {[%clk 0:00:04]} 28. Kg1 {[%clk 0:00:34]}  Qg3+ {[%clk 0:00:04]} 1/2-1/2


[Site "https://www.chess.com"]

[Event "Titled Tuesday Blitz June 28 Early 2022"]
[White "Fedoseev, Vladimir"]
[Black "Kollars, Dmitrij"]
[WhiteFideId "24130737"]
[BlackFideId "12909572"]
[WhiteElo "3055"]
[BlackElo "3009"]
[Result "1-0"]
[Round "08"]
[TimeControl "180+1"]
[Date "2022.06.28"]
[WhiteClock "0:00:21"]
[BlackClock "0:00:17"]

1. e4 {[%clk 0:03:00]}  e5 {[%clk 0:03:00]} 2. Nf3 {[%clk 0:03:00]}  Nc6 {[%clk 0:03:00]} 3. Bc4 {[%clk 0:02:59]}  Nf6 {[%clk 0:02:58]} 4. d3 {[%clk 0:02:59]}  Be7 {[%clk 0:02:54]} 5. O-O {[%clk 0:02:58]}  O-O {[%clk 0:02:55]} 6. Nc3 {[%clk 0:02:58]}  d6 {[%clk 0:02:54]} 7. a3 {[%clk 0:02:58]}  Be6 {[%clk 0:02:47]} 8. Ng5 {[%clk 0:02:58]}  Bxc4 {[%clk 0:02:45]} 9. dxc4 {[%clk 0:02:58]}  Nd4 {[%clk 0:02:40]} 10. Be3 {[%clk 0:02:51]}  Nd7 {[%clk 0:02:36]} 11. Nf3 {[%clk 0:02:44]}  Nxf3+ {[%clk 0:02:35]} 12. Qxf3 {[%clk 0:02:44]}  Bg5 {[%clk 0:02:36]} 13. Rad1 {[%clk 0:02:40]}  Bxe3 {[%clk 0:02:28]} 14. Qxe3 {[%clk 0:02:40]}  Nc5 {[%clk 0:02:26]} 15. Rd2 {[%clk 0:02:29]}  Ne6 {[%clk 0:02:24]} 16. Rfd1 {[%clk 0:02:20]}  Qh4 {[%clk 0:02:21]} 17. Qg3 {[%clk 0:02:08]}  Qxg3 {[%clk 0:02:01]} 18. hxg3 {[%clk 0:02:08]}  g6 {[%clk 0:01:54]} 19. Nd5 {[%clk 0:02:00]}  Kg7 {[%clk 0:01:47]} 20. g4 {[%clk 0:01:45]}  f5 {[%clk 0:01:41]} 21. gxf5 {[%clk 0:01:44]}  gxf5 {[%clk 0:01:42]} 22. exf5 {[%clk 0:01:43]}  Rxf5 {[%clk 0:01:43]} 23. c5 {[%clk 0:01:40]}  dxc5 {[%clk 0:01:36]} 24. Nxc7 {[%clk 0:01:33]}  Nxc7 {[%clk 0:01:22]} 25. Rd7+ {[%clk 0:01:32]}  Rf7 {[%clk 0:01:22]} 26. Rxf7+ {[%clk 0:01:32]}  Kxf7 {[%clk 0:01:23]} 27. Rd7+ {[%clk 0:01:32]}  Kg6 {[%clk 0:01:23]} 28. Rxc7 {[%clk 0:01:33]}  b6 {[%clk 0:01:24]} 29. Kf1 {[%clk 0:01:05]}  h5 {[%clk 0:01:23]} 30. g3 {[%clk 0:01:02]}  Kf5 {[%clk 0:01:16]} 31. Ke2 {[%clk 0:01:01]}  Rh8 {[%clk 0:00:44]} 32. Rf7+ {[%clk 0:00:54]}  Ke4 {[%clk 0:00:34]} 33. Rxa7 {[%clk 0:00:53]}  Kd5 {[%clk 0:00:25]} 34. Ra4 {[%clk 0:00:36]}  c4 {[%clk 0:00:20]} 35. b3 {[%clk 0:00:35]}  cxb3 {[%clk 0:00:14]} 36. cxb3 {[%clk 0:00:35]}  Rc8 {[%clk 0:00:15]} 37. Rb4 {[%clk 0:00:33]}  Rc2+ {[%clk 0:00:13]} 38. Kf3 {[%clk 0:00:33]}  Kc5 {[%clk 0:00:10]} 39. Rc4+ {[%clk 0:00:12]}  Rxc4 {[%clk 0:00:10]} 40. bxc4 {[%clk 0:00:13]}  Kd4 {[%clk 0:00:05]} 41. a4 {[%clk 0:00:13]}  Kxc4 {[%clk 0:00:05]} 42. Ke4 {[%clk 0:00:12]}  Kb4 {[%clk 0:00:05]} 43. Kxe5 {[%clk 0:00:13]}  Kxa4 {[%clk 0:00:06]} 44. f4 {[%clk 0:00:14]}  b5 {[%clk 0:00:07]} 45. f5 {[%clk 0:00:14]}  b4 {[%clk 0:00:08]} 46. f6 {[%clk 0:00:15]}  b3 {[%clk 0:00:09]} 47. f7 {[%clk 0:00:15]}  b2 {[%clk 0:00:09]} 48. f8=Q {[%clk 0:00:16]}  b1=Q {[%clk 0:00:10]} 49. Qa8+ {[%clk 0:00:16]}  Kb3 {[%clk 0:00:11]} 50. Qb7+ {[%clk 0:00:17]}  Ka2 {[%clk 0:00:11]} 51. Qxb1+ {[%clk 0:00:18]}  Kxb1 {[%clk 0:00:12]} 52. Kf5 {[%clk 0:00:18]}  Kc2 {[%clk 0:00:13]} 53. Kg5 {[%clk 0:00:18]}  Kd3 {[%clk 0:00:14]} 54. Kxh5 {[%clk 0:00:19]}  Ke4 {[%clk 0:00:15]} 55. g4 {[%clk 0:00:19]}  Ke5 {[%clk 0:00:15]} 56. g5 {[%clk 0:00:20]}  Ke6 {[%clk 0:00:16]} 57. Kg6 {[%clk 0:00:20]}  Ke7 {[%clk 0:00:16]} 58. Kh7 {[%clk 0:00:21]}  Kf8 {[%clk 0:00:17]} 59. g6 {[%clk 0:00:21]} 1-0


[Site "https://www.chess.com"]

[Event "Titled Tuesday Blitz June 28 Early 2022"]
[White "Fernandez Siles, Luis"]
[Black "Elgersma, Onno"]
[WhiteFideId "2209420"]
[BlackFideId "1053531"]
[WhiteElo "2211"]
[BlackElo "2304"]
[Result "0-1"]
[Round "08"]
[TimeControl "180+1"]
[Date "2022.06.28"]
[WhiteClock "0:00:10"]
[BlackClock "0:00:14"]

1. d4 {[%clk 0:03:00]}  Nf6 {[%clk 0:02:58]} 2. c4 {[%clk 0:03:00]}  e6 {[%clk 0:02:58]} 3. Nc3 {[%clk 0:03:00]}  d5 {[%clk 0:02:57]} 4. cxd5 {[%clk 0:02:59]}  exd5 {[%clk 0:02:58]} 5. Bg5 {[%clk 0:02:59]}  c6 {[%clk 0:02:59]} 6. e3 {[%clk 0:02:59]}  Bd6 {[%clk 0:02:59]} 7. Bd3 {[%clk 0:02:51]}  O-O {[%clk 0:02:59]} 8. Nf3 {[%clk 0:02:42]}  h6 {[%clk 0:02:55]} 9. Bh4 {[%clk 0:02:39]}  Be6 {[%clk 0:02:55]} 10. O-O {[%clk 0:02:36]}  Nbd7 {[%clk 0:02:55]} 11. e4 {[%clk 0:02:04]}  dxe4 {[%clk 0:02:52]} 12. Nxe4 {[%clk 0:02:04]}  Be7 {[%clk 0:02:53]} 13. Qe2 {[%clk 0:01:59]}  Nd5 {[%clk 0:02:44]} 14. Bg3 {[%clk 0:01:51]}  N7f6 {[%clk 0:02:41]} 15. Rad1 {[%clk 0:01:41]}  Nxe4 {[%clk 0:02:33]} 16. Qxe4 {[%clk 0:01:42]}  Nf6 {[%clk 0:02:33]} 17. Qe2 {[%clk 0:01:37]}  Bg4 {[%clk 0:02:25]} 18. Be5 {[%clk 0:01:35]}  Re8 {[%clk 0:02:22]} 19. h3 {[%clk 0:01:30]}  Bxf3 {[%clk 0:02:12]} 20. Qxf3 {[%clk 0:01:30]}  Qd5 {[%clk 0:02:12]} 21. Qg3 {[%clk 0:01:22]}  Rad8 {[%clk 0:01:59]} 22. Rfe1 {[%clk 0:01:18]}  Kf8 {[%clk 0:01:35]} 23. b3 {[%clk 0:01:10]}  b5 {[%clk 0:01:34]} 24. Re3 {[%clk 0:01:03]}  Bd6 {[%clk 0:01:27]} 25. Rde1 {[%clk 0:00:55]}  Bxe5 {[%clk 0:01:21]} 26. dxe5 {[%clk 0:00:55]}  Nd7 {[%clk 0:01:21]} 27. f4 {[%clk 0:00:35]}  Nc5 {[%clk 0:01:15]} 28. Bc2 {[%clk 0:00:33]}  Qd2 {[%clk 0:01:07]} 29. R3e2 {[%clk 0:00:31]}  Qd4+ {[%clk 0:01:06]} 30. Kh2 {[%clk 0:00:32]}  h5 {[%clk 0:00:39]} 31. Qg5 {[%clk 0:00:24]}  Ne6 {[%clk 0:00:32]} 32. Qxh5 {[%clk 0:00:20]}  Qxf4+ {[%clk 0:00:22]} 33. g3 {[%clk 0:00:18]}  Qh6 {[%clk 0:00:21]} 34. Qg4 {[%clk 0:00:18]}  Rd4 {[%clk 0:00:17]} 35. Qf5 {[%clk 0:00:14]}  Rd2 {[%clk 0:00:14]} 36. Qf2 {[%clk 0:00:10]}  Red8 {[%clk 0:00:14]} 37. Rf1 {[%clk 0:00:10]}  Rxe2 {[%clk 0:00:13]} 38. Qxe2 {[%clk 0:00:10]}  Rd2 {[%clk 0:00:14]} 0-1


[Site "https://www.chess.com"]

[Event "Titled Tuesday Blitz June 28 Early 2022"]
[White "Flynn, Jacob"]
[Black "Sadykov, Ramil"]
[WhiteFideId "2509393"]
[BlackFideId "24113590"]
[WhiteElo "1896"]
[BlackElo "2226"]
[Result "0-1"]
[Round "08"]
[TimeControl "180+1"]
[Date "2022.06.28"]
[WhiteClock "0:00:01"]
[BlackClock "0:00:04"]

1. d4 {[%clk 0:02:54]}  Nf6 {[%clk 0:02:58]} 2. c4 {[%clk 0:02:54]}  g6 {[%clk 0:02:58]} 3. g3 {[%clk 0:02:54]}  Bg7 {[%clk 0:02:58]} 4. Bg2 {[%clk 0:02:55]}  d5 {[%clk 0:02:58]} 5. cxd5 {[%clk 0:02:54]}  Nxd5 {[%clk 0:02:59]} 6. e4 {[%clk 0:02:55]}  Nb6 {[%clk 0:02:59]} 7. d5 {[%clk 0:02:55]}  O-O {[%clk 0:02:58]} 8. Ne2 {[%clk 0:02:53]}  c6 {[%clk 0:02:59]} 9. Nbc3 {[%clk 0:02:51]}  cxd5 {[%clk 0:02:59]} 10. exd5 {[%clk 0:02:51]}  Na6 {[%clk 0:02:51]} 11. O-O {[%clk 0:02:50]}  Bg4 {[%clk 0:02:44]} 12. h3 {[%clk 0:02:48]}  Bf5 {[%clk 0:02:43]} 13. Nd4 {[%clk 0:02:33]}  Bd7 {[%clk 0:02:42]} 14. Re1 {[%clk 0:02:30]}  Nc4 {[%clk 0:02:23]} 15. Qe2 {[%clk 0:02:20]}  Rc8 {[%clk 0:02:06]} 16. Nb3 {[%clk 0:02:06]}  Re8 {[%clk 0:01:47]} 17. h4 {[%clk 0:02:03]}  h5 {[%clk 0:01:45]} 18. Ne4 {[%clk 0:01:35]}  Bg4 {[%clk 0:01:40]} 19. Qd3 {[%clk 0:01:34]}  Nb4 {[%clk 0:01:33]} 20. Qf1 {[%clk 0:01:27]}  Nc2 {[%clk 0:01:28]} 21. Bg5 {[%clk 0:01:26]}  Nxa1 {[%clk 0:01:26]} 22. Nxa1 {[%clk 0:01:25]}  Nxb2 {[%clk 0:01:16]} 23. d6 {[%clk 0:01:25]}  Be6 {[%clk 0:00:56]} 24. Nb3 {[%clk 0:01:17]}  Bc4 {[%clk 0:00:55]} 25. Re2 {[%clk 0:01:15]}  Bxe2 {[%clk 0:00:53]} 26. Qxe2 {[%clk 0:01:15]}  Nc4 {[%clk 0:00:50]} 27. dxe7 {[%clk 0:01:14]}  Qb6 {[%clk 0:00:45]} 28. Bh3 {[%clk 0:01:06]}  f5 {[%clk 0:00:39]} 29. Nec5 {[%clk 0:00:55]}  Ne5 {[%clk 0:00:39]} 30. Nd3 {[%clk 0:00:35]}  Nxd3 {[%clk 0:00:24]} 31. Qxd3 {[%clk 0:00:36]}  Bf6 {[%clk 0:00:25]} 32. Qd5+ {[%clk 0:00:33]}  Kg7 {[%clk 0:00:25]} 33. Bg2 {[%clk 0:00:13]}  Rxe7 {[%clk 0:00:22]} 34. Bxf6+ {[%clk 0:00:10]}  Qxf6 {[%clk 0:00:23]} 35. Nd4 {[%clk 0:00:09]}  Rc1+ {[%clk 0:00:20]} 36. Kh2 {[%clk 0:00:09]}  Rce1 {[%clk 0:00:12]} 37. Nf3 {[%clk 0:00:09]}  R1e4 {[%clk 0:00:07]} 38. Ng5 {[%clk 0:00:09]}  R4e5 {[%clk 0:00:07]} 39. Qc4 {[%clk 0:00:06]}  f4 {[%clk 0:00:06]} 40. gxf4 {[%clk 0:00:05]}  Rf5 {[%clk 0:00:07]} 41. Qc8 {[%clk 0:00:04]}  Rxf4 {[%clk 0:00:06]} 42. Bd5 {[%clk 0:00:04]}  Rxh4+ {[%clk 0:00:06]} 43. Nh3 {[%clk 0:00:02]}  Qd6+ {[%clk 0:00:06]} 44. f4 {[%clk 0:00:02]}  Qxd5 {[%clk 0:00:06]} 45. Qd8 {[%clk 0:00:01]}  Re2+ {[%clk 0:00:05]} 46. Kg1 {[%clk 0:00:01]}  Qg2# {[%clk 0:00:04]} 0-1


[Site "https://www.chess.com"]